bitfinex/quotes_SOLUSD_20240614
["timestamp","ask_amount","ask_price","bid_price","bid_amount"]
[1718383058075,5.2026,142.24,142.16,0.34]
[1718383058271,5.2026,142.24,142.17,0.17]
[1718383058590,2.6014,142.23,142.17,0.17]
[1718383058777,15.6077,142.24,142.17,0.34]
[1718383058976,14.6602,142.25,142.19,0.17]
[1718383059182,13.0064,142.24,142.19,0.34]
[1718383059505,19.8627,142.25,142.19,0.34]
[1718383059506,17.2613,142.25,142.19,0.34]
[1718383059667,9.4579,142.25,142.19,0.17]
[1718383059866,9.4579,142.25,142.18,0.34]
[1718383060070,26.0148,142.23,142.18,0.34]
[1718383060273,15.6124,142.2,142.15,0.8354766]
[1718383060468,5.2047,142.18,142.15,0.8354766]
[1718383060687,7.8076,142.17,142.15,0.8354766]
[1718383060917,2.6027,142.16,142.15,0.8354766]
[1718383061081,2.6026,142.17,142.15,0.8354766]
[1718383061393,10.4128,142.14,142.04,8.4723]
[1718383061597,9.5259,142.16,142.04,34.9]
[1718383061895,15.6208,142.12,142.04,34.9]
[1718383062074,2.6037,142.11,142.04,34.9]
[1718383062270,2.6035,142.12,142.04,34.9]
[1718383062499,2.6034,142.12,142.04,34.9]
[1718383062693,7.8105,142.12,142.04,34.9]
[1718383062863,2.6037,142.11,142.03,86.085]
[1718383063078,2.6038,142.1,142.03,86.085]
[1718383063294,15.6216,142.11,142.03,86.085]
[1718383063498,2.6038,142.1,142.03,43.885]
[1718383063799,5.2079,142.09,142.04,1.40563143]
[1718383064001,24.2199,142.15,142.04,1.40563143]
[1718383064161,2.6036,142.11,142.02,1.40563143]
[1718383064360,26.0365,142.11,142.01,0.8354766]
[1718383064569,2.6038,142.1,142.01,0.8354766]
[1718383064825,7.8111,142.11,142.01,0.8354766]
[1718383064990,2.6035,142.12,142.01,0.8354766]
[1718383065198,7.8109,142.11,142.01,1.38762657]
[1718383065486,2.6034,142.12,142.02,0.17]
[1718383065699,24.2199,142.15,142.02,0.68]
[1718383065987,2.6034,142.12,142.02,42.88]
[1718383066209,2.6034,142.12,142.04,0.17]
[1718383066210,2.6036,142.11,142.04,0.17]
[1718383066414,2.6035,142.12,142.04,0.68]
[1718383066612,15.6207,142.12,142.04,0.68]
[1718383066775,18.223,142.13,142.04,0.68]
[1718383066979,24.2199,142.15,142.04,0.68]
[1718383066980,13.0155,142.14,142.04,0.68]
[1718383067196,5.2062,142.14,142.04,0.68]
[1718383067382,18.223,142.13,142.04,0.68]
[1718383067582,24.2199,142.15,142.04,0.68]
[1718383068010,20.8204,142.17,142.05,51.5077]
[1718383068182,33.38440618,142.19,142.08,0.17]
[1718383068506,23.0151,142.19,142.08,0.68]
[1718383068680,2.6029,142.15,142.08,0.68]
[1718383068887,5.2058,142.15,142.08,0.68]
[1718383069076,23.0151,142.19,142.08,0.68]
[1718383069077,2.6031,142.14,142.08,0.68]
[1718383069286,7.8098,142.13,142.08,0.68]
[1718383069493,7.8098,142.13,142.08,0.17]
[1718383069494,10.4134,142.13,142.08,0.17]
[1718383069716,10.4141,142.12,142.05,34.95]
[1718383069916,2.6034,142.12,142.06,0.17]
[1718383070106,2.6035,142.12,142.06,0.17]
[1718383070309,7.8098,142.13,142.06,0.17]
[1718383070611,2.6034,142.12,142.06,0.17]
[1718383070792,9.6313,142.12,142.01,35.7854766]
[1718383071013,2.6042,142.08,142.01,35.7854766]
[1718383071184,23.4334,142.11,142.01,0.8354766]
[1718383071391,15.623,142.1,142.01,0.8354766]
[1718383071610,26.0383,142.1,142.01,0.8354766]
[1718383071801,2.6039,142.1,142.01,0.8354766]
[1718383071985,17.4417,142.12,142.01,0.8354766]
[1718383072189,33.0627,142.12,142.01,0.8354766]
[1718383072492,9.6313,142.12,142.01,0.8354766]
[1718383072691,18.17629668,142.13,142.02,42.2]
[1718383072894,2.6034,142.12,142.02,42.2]
[1718383073094,36.39789668,142.14,142.04,42.2]
[1718383073306,2.6031,142.14,142.05,62.2]
[1718383073506,2.6034,142.12,142.05,0.17]
[1718383073808,2.6034,142.12,142.06,0.17]
[1718383073809,2.6036,142.11,142.06,0.17]
[1718383074020,2.6038,142.1,142.06,0.17]
[1718383074315,10.36639668,142.15,142.06,0.17]
[1718383074316,7.811,142.11,142.06,0.17]
[1718383074619,2.6035,142.12,142.06,0.17]
[1718383074907,10.36639668,142.15,142.06,0.17]
[1718383075093,10.36639668,142.16,142.08,0.17]
[1718383075343,2.6023,142.18,142.08,62.71]
[1718383075497,42.412303,142.19,142.09,0.17]
[1718383075689,32.0573,142.19,142.1,0.17]
[1718383076005,32.0573,142.19,142.1,0.51]
[1718383076205,32.0573,142.19,142.11,0.17]
[1718383076525,32.0573,142.19,142.12,0.17]
[1718383076690,32.0573,142.19,142.11,0.51]
[1718383077010,37.2616,142.19,142.12,0.17]
[1718383077208,2.6018,142.21,142.12,42.37]
[1718383077426,12.956403,142.23,142.14,0.17]
[1718383077736,12.956403,142.23,142.14,42.81205246]
[1718383077925,10.355003,142.24,142.16,9.633]
[1718383078211,10.355003,142.24,142.18,0.17]
[1718383078399,2.6013,142.24,142.18,0.17]
[1718383078596,26.011,142.25,142.18,0.17]
[1718383078902,2.6007,142.27,142.18,0.17]
[1718383079109,18.16250579,142.28,142.18,42.37]
[1718383079421,23.4065,142.27,142.2,0.17]
[1718383079596,2.6007,142.27,142.2,1.57469231]
[1718383079794,33.7247,142.31,142.19,20.51]
[1718383079795,12.96090579,142.3,142.22,0.17]
[1718383080016,10.36080579,142.3,142.22,0.34]
[1718383080210,5.201,142.28,142.22,0.68]
[1718383080416,2.6014,142.23,142.22,0.51]
[1718383080652,10.36030391,142.3,142.23,0.17]
[1718383080653,10.36030391,142.29,142.23,0.17]
[1718383080797,18.2019,142.3,142.22,0.34]
[1718383080798,10.36030391,142.3,142.22,0.34]
[1718383080993,2.6012,142.25,142.22,0.17]
[1718383081209,13.0053,142.25,142.22,0.17]
[1718383081432,10.4042,142.25,142.18,0.17]
[1718383081616,10.4056,142.23,142.16,9.463]
[1718383081927,200.0,142.31,142.16,9.463]
[1718383081928,10.36030391,142.25,142.16,9.463]
[1718383082138,26.0183,142.21,142.16,9.463]
[1718383082415,200.0,142.31,142.12,9.3077]
[1718383082416,10.36030391,142.24,142.12,9.3918]
[1718383082590,23.4219,142.18,142.12,9.3918]
[1718383082790,7.8075,142.17,142.12,9.3918]
[1718383083146,2.603,142.15,142.1,34.95]
[1718383083415,2.6025,142.17,142.1,34.95]
[1718383083599,10.36030391,142.2,142.1,77.15]
[1718383083785,7.806,142.2,142.1,77.15]
[1718383083986,10.36030391,142.21,142.12,42.2]
[1718383084195,10.36030391,142.22,142.13,62.2]
[1718383084395,10.36030391,142.23,142.14,34.95]
[1718383084604,10.36030391,142.24,142.16,18.8864]
[1718383084876,10.36030391,142.24,142.2,0.17]
[1718383085001,10.36030391,142.26,142.2,0.68]
[1718383085197,10.36030391,142.27,142.2,0.68]
[1718383085513,2.6006,142.28,142.2,0.68]
[1718383085514,10.36030391,142.28,142.2,0.68]
[1718383085725,10.36030391,142.28,142.2,0.51]
[1718383085923,2.601,142.25,142.2,0.17]
[1718383086094,15.6062,142.25,142.21,0.17]
[1718383086295,7.8043,142.23,142.2,0.34]
[1718383086506,26.0144,142.23,142.2,0.17]
[1718383086823,2.6016,142.22,142.17,0.17]
[1718383086995,2.6016,142.22,142.17,0.34]
[1718383087202,15.6096,142.22,142.14,77.15]
[1718383087397,18.2142,142.2,142.12,19.2519]
[1718383087601,7.8057,142.21,142.13,20.0]
[1718383087602,23.4169,142.21,142.13,20.0]
[1718383087938,2.6021,142.19,142.12,19.2519]
[1718383088091,7.806,142.2,142.12,61.4519]
[1718383088291,2.602,142.2,142.12,61.4519]
[1718383088491,26.0219,142.19,142.12,19.2519]
[1718383088714,23.4185,142.2,142.12,19.2519]
[1718383088969,12.95657813,142.21,142.12,19.2519]
[1718383089243,10.35477813,142.22,142.13,42.2]
[1718383089410,10.35477813,142.23,142.14,62.2]
[1718383089612,12.95617813,142.23,142.15,0.34]
[1718383089819,12.95617813,142.23,142.16,0.51]
[1718383090010,2.6016,142.22,142.17,0.17]
[1718383090515,5.2039,142.2,142.16,0.17]
[1718383090707,7.8065,142.19,142.15,0.68]
[1718383090933,7.8069,142.18,142.12,9.3569]
[1718383091148,2.6025,142.17,142.13,0.17]
[1718383091342,23.4209,142.18,142.13,0.17]
[1718383091343,7.807,142.18,142.13,0.17]
[1718383091538,2.6024,142.18,142.13,0.17]
[1718383091718,7.807,142.18,142.13,0.17]
[1718383091935,2.6025,142.17,142.1,77.15]
[1718383092124,7.8076,142.17,142.11,0.17]
[1718383092342,23.4199,142.19,142.11,0.17]
[1718383092535,18.16077813,142.2,142.11,0.17]
[1718383093042,2.6021,142.19,142.11,0.51]
[1718383093236,26.0198,142.2,142.11,0.68]
[1718383093421,2.6021,142.19,142.11,0.68]
[1718383093927,10.35477813,142.22,142.13,0.17]
[1718383094123,10.35477813,142.23,142.15,0.17]
[1718383094330,32.8377,142.3,142.17,0.17]
[1718383094331,10.35477813,142.24,142.17,0.17]
[1718383094732,10.35477813,142.26,142.17,52.1045]
[1718383094941,2.6009,142.26,142.19,0.17]
[1718383095243,2.6008,142.26,142.19,1.57617014]
[1718383095417,23.4079,142.26,142.21,0.17]
[1718383095616,7.8032,142.25,142.2,0.34]
[1718383095824,23.4085,142.26,142.21,0.17]
[1718383096031,2.6009,142.26,142.21,0.17]
[1718383096270,26.0077,142.27,142.21,0.17]
[1718383096535,2.6009,142.26,142.21,0.17]
[1718383097025,7.8023,142.27,142.21,0.17]
[1718383097340,7.8025,142.26,142.21,0.34]
[1718383097539,7.8035,142.25,142.21,0.17]
[1718383097719,2.6007,142.27,142.21,0.17]
[1718383098040,20.75727813,142.28,142.21,0.34]
[1718383098341,32.8377,142.3,142.21,0.34]
[1718383098342,7.802,142.27,142.22,0.34]
[1718383098532,2.6008,142.26,142.22,0.34]
[1718383098756,10.35477813,142.26,142.15,42.2]
[1718383098925,2.6012,142.24,142.16,62.2]
[1718383099243,26.0114,142.25,142.16,62.2]
[1718383099541,2.6012,142.24,142.16,62.2]
[1718383099833,2.6012,142.24,142.14,42.2]
[1718383099834,26.014,142.24,142.14,42.2]
[1718383100055,7.8059,142.2,142.13,9.5316]
[1718383100651,10.35477813,142.22,142.13,9.5316]
[1718383100814,23.4196,142.19,142.13,9.5316]
[1718383101015,5.2047,142.18,142.1,77.15]
[1718383101242,2.6023,142.18,142.1,77.15]
[1718383101417,23.4184,142.2,142.1,77.15]
[1718383101655,2.6023,142.18,142.1,77.15]
[1718383101860,17.74279342,142.21,142.1,77.15]
[1718383102056,25.54829342,142.21,142.11,62.2]
[1718383102217,10.91189342,142.23,142.12,0.17]
[1718383102537,8.31049342,142.23,142.13,63.3]
[1718383102746,8.31049342,142.23,142.16,0.17]
[1718383102922,8.31049342,142.23,142.16,0.68]
[1718383103119,8.31049342,142.23,142.16,64.28622239]
[1718383103320,26.0072,142.27,142.19,0.17]
[1718383103522,9.5963,142.29,142.19,0.68]
[1718383103765,2.6005,142.28,142.19,62.88]
[1718383104045,26.0051,142.28,142.19,62.88]
[1718383104265,33.0,142.29,142.19,62.88]
[1718383104425,7.8016,142.28,142.19,62.88]
[1718383104811,10.4027,142.27,142.19,62.88]
[1718383105045,14.8815,142.32,142.19,83.98]
[1718383105349,5.2007,142.29,142.21,0.17]
[1718383105535,23.4036,142.29,142.21,0.17]
[1718383105733,9.6816,142.32,142.21,0.34]
[1718383106041,7.801,142.29,142.23,0.17]
[1718383106574,18.2015,142.3,142.23,0.34]
[1718383106890,7.8006,142.3,142.23,0.34]
[1718383107036,7.8006,142.3,142.25,0.17]
[1718383107403,10.36055824,142.32,142.25,0.17]
[1718383107668,23.5257,142.34,142.27,0.17]
[1718383107669,10.36055824,142.34,142.27,0.17]
[1718383108025,10.36055824,142.35,142.27,62.88]
[1718383108432,12.95955824,142.36,142.27,62.88]
[1718383108627,12.9952,142.36,142.27,62.88]
[1718383108844,2.5994,142.34,142.27,62.88]
[1718383109026,42.93155824,142.39,142.27,20.68]
[1718383109372,7.7988,142.33,142.27,0.68]
[1718383109733,25.9946,142.34,142.27,0.68]
[1718383110048,12.9971,142.34,142.27,0.68]
[1718383110249,2.5999,142.32,142.27,0.68]
[1718383110428,7.7994,142.32,142.27,0.68]
[1718383110634,2.5997,142.33,142.27,0.68]
[1718383110873,2.5992,142.35,142.27,0.68]
[1718383111510,2.5995,142.33,142.27,0.68]
[1718383112116,0.17,142.38,142.26,9.1382]
[1718383112261,2.6005,142.28,142.23,1.281]
[1718383112458,7.7984,142.34,142.23,1.281]
[1718383112673,5.1993,142.33,142.23,1.281]
[1718383112988,10.36055824,142.37,142.23,1.281]
[1718383113293,15.5978,142.33,142.23,43.481]
[1718383113478,7.7993,142.32,142.24,0.17]
[1718383113786,10.36055824,142.37,142.24,0.68]
[1718383114087,10.36055824,142.35,142.23,43.481]
[1718383114392,2.5998,142.32,142.23,43.481]
[1718383114912,2.5999,142.31,142.23,43.481]
[1718383115061,2.5999,142.31,142.24,0.51]
[1718383115397,2.5992,142.35,142.25,0.17]
[1718383115568,2.5992,142.35,142.26,0.17]
[1718383115569,15.5966,142.34,142.26,0.17]
[1718383115770,5.1992,142.33,142.26,0.51]
[1718383116082,7.7993,142.32,142.27,0.17]
[1718383116332,2.5998,142.32,142.27,0.17]
[1718383116505,7.7993,142.32,142.27,0.17]
[1718383116665,2.5999,142.31,142.27,0.17]
[1718383116867,2.5999,142.31,142.26,0.51]
[1718383116868,25.9997,142.31,142.26,0.51]
[1718383117089,15.5998,142.31,142.26,0.51]
[1718383117272,15.5998,142.31,142.23,43.481]
[1718383117273,2.6002,142.3,142.23,1.281]
[1718383117467,10.37145697,142.32,142.23,1.281]
[1718383117698,15.57105697,142.32,142.23,43.481]
[1718383117890,2.5999,142.31,142.23,43.481]
[1718383118417,10.37145697,142.31,142.23,43.481]
[1718383118573,10.37145697,142.33,142.25,42.37]
[1718383118791,10.37145697,142.33,142.24,20.34]
[1718383118792,10.37145697,142.33,142.27,0.17]
[1718383118985,12.97085697,142.34,142.27,0.17]
[1718383119205,2.5996,142.33,142.27,0.51]
[1718383119421,2.5996,142.33,142.28,0.17]
[1718383119598,2.5996,142.33,142.29,0.17]
[1718383119830,33.76655697,142.34,142.29,0.51]
[1718383119831,10.37145697,142.34,142.29,0.51]
[1718383120026,10.37145697,142.34,142.3,0.17]
[1718383120186,10.37145697,142.33,142.31,0.17]
[1718383120384,10.37145697,142.36,142.31,1.791]
[1718383120710,5.1974,142.38,142.32,0.17]
[1718383121045,7.7962,142.38,142.33,0.17]
[1718383121307,10.37145697,142.39,142.33,0.51]
[1718383121535,10.37145697,142.39,142.34,0.17]
[1718383121536,23.3883,142.38,142.34,0.17]
[1718383121705,10.37145697,142.39,142.35,0.17]
[1718383122023,2.5987,142.38,142.35,0.17]
[1718383122190,36.35685697,142.39,142.34,0.17]
[1718383122385,7.796,142.38,142.34,0.17]
[1718383122608,2.5988,142.37,142.34,0.17]
[1718383123107,18.1908,142.38,142.34,0.17]
[1718383123297,7.7962,142.38,142.34,0.17]
[1718383123620,2.5988,142.38,142.34,0.17]
[1718383124991,33.75885697,142.39,142.34,0.17]
[1718383124992,10.37145697,142.39,142.34,0.17]
[1718383125195,36.35515697,142.4,142.34,0.17]
[1718383125509,33.75705697,142.4,142.34,0.17]
[1718383125701,18.16645697,142.4,142.34,0.34]
[1718383125902,25.96135697,142.4,142.35,0.17]
[1718383126087,18.16645697,142.4,142.35,0.34]
[1718383126293,2.5985,142.39,142.35,0.34]
[1718383126488,2.5985,142.39,142.35,0.17]
[1718383126686,10.37145697,142.4,142.31,1.281]
[1718383126939,2.599,142.36,142.3,8.2402]
[1718383127096,2.5994,142.34,142.3,8.2402]
[1718383127294,2.5995,142.33,142.26,21.281]
[1718383127495,29.6275,142.43,142.26,1.281]
[1718383127496,10.37145697,142.37,142.26,1.281]
[1718383127726,18.1979,142.33,142.26,1.281]
[1718383127905,10.37145697,142.36,142.25,8.2575]
[1718383127906,2.6001,142.3,142.25,8.2575]
[1718383128102,8.439,142.35,142.25,8.2575]
[1718383128103,39.32765697,142.35,142.25,8.2575]
[1718383128320,7.8006,142.3,142.25,8.2575]
[1718383128716,18.2011,142.3,142.23,5.58440673]
[1718383128906,2.6003,142.29,142.21,42.2]
[1718383129103,2.6005,142.28,142.21,42.2]
[1718383129309,26.0033,142.29,142.21,42.2]
[1718383129619,23.4029,142.29,142.21,42.2]
[1718383130023,10.37145697,142.31,142.2,265.7796]
[1718383130204,7.8023,142.27,142.2,8.2796]
[1718383130319,2.6009,142.26,142.2,8.2796]
[1718383130625,10.37938115,142.3,142.2,14.04980598]
[1718383130805,2.5999,142.31,142.21,42.2]
[1718383130999,10.4013,142.29,142.2,48.90980598]
[1718383131260,23.4055,142.28,142.2,48.90980598]
[1718383131422,23.4062,142.27,142.2,48.90980598]
[1718383131613,26.0058,142.28,142.2,48.90980598]
[1718383131920,2.6007,142.27,142.2,14.04980598]
[1718383132106,7.8018,142.28,142.2,14.04980598]
[1718383132512,26.0054,142.28,142.2,14.04980598]
[1718383132699,26.0054,142.28,142.21,0.17]
[1718383132919,12.97986029,142.27,142.21,0.68]
[1718383133128,18.18096029,142.28,142.21,0.68]
[1718383133500,12.97966029,142.28,142.21,0.68]
[1718383133704,10.37916029,142.28,142.2,8.2796]
[1718383133899,2.6011,142.25,142.18,1.281]
[1718383134143,15.6063,142.25,142.18,1.281]
[1718383134442,26.0131,142.24,142.18,1.281]
[1718383134628,7.8034,142.25,142.18,1.281]
[1718383134811,12.98006029,142.26,142.18,1.281]
[1718383135199,18.18176029,142.26,142.18,1.281]
[1718383135398,2.6012,142.24,142.19,0.34]
[1718383135661,2.6012,142.24,142.18,1.281]
[1718383135913,23.4099,142.25,142.18,1.281]
[1718383136116,2.6012,142.24,142.18,1.281]
[1718383136425,2.6016,142.22,142.17,8.4362]
[1718383136811,2.6017,142.21,142.17,8.4362]
[1718383137128,2.6016,142.22,142.14,9.8682]
[1718383137502,26.0149,142.23,142.14,9.8682]
[1718383137798,23.4145,142.22,142.15,0.17]
[1718383138017,10.37916029,142.24,142.14,9.8682]
[1718383138018,2.602,142.2,142.14,9.8682]
[1718383138222,23.4164,142.21,142.14,9.8682]
[1718383138526,7.8059,142.2,142.14,9.8682]
[1718383138735,2.6021,142.19,142.14,9.8682]
[1718383139038,15.6121,142.2,142.11,7.8563]
[1718383139337,10.37916029,142.21,142.11,7.8563]
[1718383139503,23.4218,142.18,142.11,7.8563]
[1718383139830,2.6023,142.18,142.11,7.8563]
[1718383140014,10.37916029,142.2,142.11,50.0563]
[1718383140196,7.806,142.2,142.11,50.0563]
[1718383140400,2.602,142.2,142.11,50.0563]
[1718383140813,26.022,142.19,142.12,0.17]
[1718383141031,7.8067,142.19,142.11,7.8563]
[1718383141247,23.4197,142.19,142.11,7.8563]
[1718383141416,2.6024,142.18,142.11,7.8563]
[1718383141629,7.8067,142.19,142.11,7.8563]
[1718383141817,7.8071,142.18,142.11,7.8563]
[1718383142145,2.602,142.2,142.11,7.8563]
[1718383142441,10.36979244,142.21,142.11,50.0563]
[1718383142753,2.6017,142.22,142.12,63.60666064]
[1718383142941,10.36979244,142.23,142.13,0.34]
[1718383143239,10.36979244,142.23,142.15,0.17]
[1718383143240,7.8049,142.22,142.15,0.17]
[1718383143421,7.8049,142.22,142.15,0.34]
[1718383143422,2.6018,142.21,142.15,0.34]
[1718383143615,2.602,142.2,142.16,0.34]
[1718383143821,2.6019,142.21,142.16,0.34]
[1718383144547,10.36182435,142.23,142.17,0.17]
[1718383144843,2.6013,142.24,142.17,0.34]
[1718383145017,2.6013,142.24,142.18,0.34]
[1718383145216,7.8037,142.24,142.18,0.34]
[1718383145424,15.6074,142.24,142.18,0.34]
[1718383145724,7.8048,142.22,142.13,0.17]
[1718383145917,7.8048,142.22,142.16,0.17]
[1718383146117,18.2106,142.23,142.16,0.17]
[1718383146118,2.6015,142.23,142.16,0.17]
[1718383146418,2.6015,142.23,142.17,0.17]
[1718383146419,23.4133,142.23,142.17,0.17]
[1718383146616,2.6016,142.22,142.17,0.17]
[1718383146824,23.4133,142.23,142.17,0.17]
[1718383146825,26.0148,142.23,142.17,0.34]
[1718383147025,2.6016,142.22,142.18,0.17]
[1718383147231,12.96312435,142.24,142.18,0.34]
[1718383147614,10.36182435,142.24,142.18,8.5978]
[1718383147837,10.36182435,142.26,142.19,0.34]
[1718383148040,5.2018,142.26,142.2,0.34]
[1718383148255,5.2018,142.26,142.18,0.17]
[1718383148256,7.8048,142.22,142.18,0.17]
[1718383148427,7.8044,142.23,142.18,0.34]
[1718383148753,18.2093,142.24,142.12,3.1812]
[1718383148754,10.36182435,142.24,142.12,3.1812]
[1718383148954,5.2039,142.2,142.12,3.1812]
[1718383149249,2.6023,142.18,142.12,3.1812]
[1718383149639,2.6023,142.18,142.12,8.76811078]
[1718383149849,26.0204,142.2,142.12,8.76811078]
[1718383150129,7.8059,142.2,142.13,1.40415162]
[1718383150341,5.205,142.17,142.12,3.1812]
[1718383150534,2.6026,142.17,142.12,3.1812]
[1718383151322,26.0242,142.18,142.12,3.1812]
[1718383151535,5.2048,142.18,142.13,0.17]
[1718383151730,7.8072,142.18,142.13,0.34]
[1718383151947,7.8072,142.18,142.12,3.1812]
[1718383152126,7.8065,142.19,142.13,0.34]
[1718383152471,18.2171,142.18,142.13,0.34]
[1718383152649,23.4199,142.19,142.13,0.34]
[1718383152830,2.6021,142.19,142.14,0.17]
[1718383153029,2.6021,142.19,142.13,0.34]
[1718383153030,7.8076,142.17,142.13,0.34]
[1718383153220,2.6025,142.17,142.13,0.34]
[1718383153427,7.8075,142.17,142.13,0.17]
[1718383153627,7.8075,142.17,142.12,3.1812]
[1718383153854,2.6026,142.17,142.11,0.51]
[1718383154057,7.8076,142.17,142.12,0.17]
[1718383154231,2.6026,142.17,142.12,0.34]
[1718383154752,2.6025,142.17,142.12,0.34]
[1718383155054,15.6145,142.18,142.12,0.34]
[1718383155224,7.8075,142.17,142.12,0.34]
[1718383155428,10.36182435,142.21,142.1,0.17]
[1718383155429,2.6029,142.15,142.1,0.34]
[1718383155735,7.8083,142.16,142.11,0.34]
[1718383156058,10.34219662,142.2,142.11,0.34]
[1718383156259,2.6026,142.17,142.11,0.34]
[1718383156759,2.6027,142.16,142.11,0.34]
[1718383157065,7.8081,142.16,142.11,0.34]
[1718383157451,7.8086,142.15,142.11,0.34]
[1718383157775,7.8083,142.16,142.11,0.17]
[1718383157936,26.0273,142.16,142.11,0.17]
[1718383158135,10.34219662,142.19,142.11,0.17]
[1718383158454,2.6024,142.18,142.12,0.17]
[1718383158670,2.6023,142.18,142.12,0.34]
[1718383158962,10.34219662,142.21,142.12,0.17]
[1718383159345,2.6024,142.18,142.12,0.17]
[1718383159693,10.34219662,142.2,142.11,42.2]
[1718383159981,10.34219662,142.22,142.12,62.54]
[1718383160134,12.94379662,142.22,142.12,62.54]
[1718383160331,7.8054,142.21,142.12,62.54]
[1718383160556,26.0166,142.22,142.12,62.54]
[1718383160768,2.6017,142.21,142.14,0.17]
[1718383160949,10.4088,142.19,142.14,0.34]
[1718383161139,7.8071,142.18,142.1,34.86]
[1718383161380,10.34219662,142.21,142.11,0.68]
[1718383161541,5.2041,142.2,142.11,0.68]
[1718383161740,2.6022,142.19,142.11,0.68]
[1718383162471,2.6024,142.18,142.11,0.68]
[1718383162670,2.6027,142.16,142.11,0.68]
[1718383162854,7.8081,142.16,142.11,0.68]
[1718383163176,2.6027,142.16,142.09,3.1812]
[1718383164498,26.0257,142.17,142.1,0.68]
[1718383164696,7.8083,142.16,142.1,0.68]
[1718383165183,2.6027,142.16,142.1,0.68]
[1718383165367,7.8078,142.17,142.1,0.68]
[1718383165587,15.6153,142.17,142.1,0.68]
[1718383165790,2.6026,142.17,142.1,0.68]
[1718383165972,7.8077,142.17,142.1,0.68]
[1718383166171,2.6029,142.15,142.1,0.68]
[1718383166366,2.6028,142.16,142.1,0.68]
[1718383166567,7.8093,142.14,142.09,3.1812]
[1718383166995,2.6034,142.12,142.05,3.1812]
[1718383167205,2.6039,142.1,142.05,3.1812]
[1718383167681,7.8105,142.12,142.05,3.1812]
[1718383167874,15.6208,142.12,142.05,3.1812]
[1718383168086,18.2244,142.12,142.05,3.1812]
[1718383168391,7.8105,142.12,142.05,3.1812]
[1718383168690,2.6036,142.11,142.05,3.1812]
[1718383168892,26.0347,142.12,142.06,0.51]
[1718383169074,2.6036,142.11,142.06,0.51]
[1718383169694,10.35330676,142.13,142.06,0.17]
[1718383170008,2.6039,142.09,142.05,3.3512]
[1718383170201,2.6039,142.09,142.05,3.1812]
[1718383170495,26.0428,142.08,142.01,4.0166766]
[1718383170787,10.35330676,142.11,142.01,46.2166766]
[1718383171198,10.35330676,142.13,142.04,77.06]
[1718383171423,10.35330676,142.15,142.07,3.1812]
[1718383171622,15.894,142.2,142.08,77.06]
[1718383171623,10.35330676,142.17,142.08,77.06]
[1718383171918,23.4218,142.18,142.09,62.88]
[1718383172216,13.0125,142.17,142.09,62.88]
[1718383172506,10.35330676,142.16,142.05,0.17]
[1718383172691,10.35330676,142.16,142.07,0.17]
[1718383172692,2.6028,142.15,142.07,0.17]
[1718383173003,2.6032,142.13,142.07,0.34]